fUSD/lending_fUSD_20250110
["ID","MTS","AMOUNT","RATE_DAILY","PERIOD"]
[348372034,1736477434847,-504.51335816,9.989e-05,2]
[348372035,1736477434857,-500.0,9.989e-05,2]
[348372036,1736477434867,-691.56,9.989e-05,2]
[348372037,1736477434876,-730.01,9.989e-05,2]
[348372038,1736477434887,-500.0,9.989e-05,2]
[348372039,1736477434897,-2592.9,9.989e-05,2]
[348372040,1736477434906,-500.0,9.989e-05,2]
[348372041,1736477434916,-945.53,9.989e-05,2]
[348372042,1736477434926,-1193.59,9.989e-05,2]
[348372043,1736477434937,-500.0,9.989e-05,2]
[348372044,1736477434946,-502.43770866,9.989e-05,2]
[348372045,1736477434955,-500.0,9.989e-05,2]
[348372046,1736477434964,-500.0,9.989e-05,2]
[348372047,1736477434974,-649.61718294,9.989e-05,2]
[348372048,1736477434985,-352.51281706,9.989e-05,2]
[348372049,1736477434994,-500.0,9.989e-05,2]
[348372050,1736477435004,-17917.88718295,9.99e-05,2]
[348372056,1736477438562,-513.92,9.989e-05,2]
[348372057,1736477438572,-108.8492827,9.989e-05,2]
[348372058,1736477438584,-391.1507173,9.989e-05,2]
[348372059,1736477438593,-500.0,9.989e-05,2]
[348372060,1736477438603,-3189.39,9.989e-05,2]
[348372061,1736477438613,-232082.11281705,9.99e-05,2]
[348372062,1736477438622,-380.97917649,9.991e-05,2]
[348372063,1736477438632,-505.84129231,9.992e-05,2]
[348372064,1736477438641,-505.84129231,9.993e-05,2]
[348372065,1736477438650,-525.26167991,9.993e-05,2]
[348372066,1736477438660,-1555.40807872,9.993e-05,2]
[348372067,1736477438670,-1330.64097166,9.995e-05,2]
[348372068,1736477438679,-505.84129231,9.996e-05,2]
[348372069,1736477438688,-458.5511574,9.996e-05,2]
[348372070,1736477438698,-5755.024,9.996e-05,2]
[348372071,1736477438707,-234.823,9.996e-05,2]
[348372072,1736477438717,-573.69415341,9.997e-05,2]
[348372073,1736477438726,-1260.30789671,9.997e-05,2]
[348372074,1736477438735,-1141.27,9.997e-05,2]
[348372075,1736477438744,-3645.53,9.997e-05,2]
[348372076,1736477438754,-1530.67,9.997e-05,2]
[348372077,1736477438765,-2193.45,9.997e-05,2]
[348372078,1736477438774,-573.69415341,9.997e-05,2]
[348372079,1736477438788,-1555.40807872,9.997e-05,2]
[348372080,1736477438798,-1302.89,9.997e-05,2]
[348372081,1736477438808,-1786.64,9.997e-05,2]
[348372082,1736477438819,-945.27,9.997e-05,2]
[348372083,1736477438829,-2370.23,9.997e-05,2]
[348372084,1736477438840,-801.56,9.997e-05,2]
[348372085,1736477438849,-919.87,9.997e-05,2]
[348372086,1736477438859,-1420.74,9.997e-05,2]
[348372087,1736477438871,-562.4,9.997e-05,2]
[348372088,1736477438882,-1246.31,9.997e-05,2]
[348372089,1736477438891,-796.46,9.997e-05,2]
[348372090,1736477438901,-693.96,9.997e-05,2]
[348372091,1736477438911,-941.23,9.997e-05,2]
[348372092,1736477438921,-933.84,9.997e-05,2]
[348372093,1736477438933,-1276.71,9.997e-05,2]
[348372094,1736477438944,-1297.58,9.997e-05,2]
[348372095,1736477438954,-2201.95,9.997e-05,2]
[348372096,1736477438964,-5783.19,9.997e-05,2]
[348372097,1736477438975,-1057.03,9.997e-05,2]
[348372098,1736477438985,-803.72,9.997e-05,2]
[348372099,1736477438995,-821.59,9.997e-05,2]
[348372100,1736477439004,-2207.95,9.997e-05,2]
[348372101,1736477439014,-500.0,9.997e-05,2]
[348372102,1736477439024,-779.56,9.997e-05,2]
[348372103,1736477439033,-840.26,9.997e-05,2]
[348372104,1736477439043,-1169.18,9.997e-05,2]
[348372105,1736477439052,-525.26167991,9.997e-05,2]
[348372107,1736477439062,-525.26167991,9.997e-05,2]
[348372109,1736477439071,-1653.51894502,9.998e-05,2]
[348372112,1736477439081,-458.5511574,9.999e-05,2]
[348372114,1736477439090,-500.0,9.999e-05,2]
[348372115,1736477439100,-538.37,9.999e-05,2]
[348372116,1736477439110,-500.0,9.999e-05,2]
[348372117,1736477439121,-500.0,9.999e-05,2]
[348372118,1736477439133,-500.0,9.999e-05,2]
[348372119,1736477439144,-500.0,9.999e-05,2]
[348372120,1736477439157,-500.0,9.999e-05,2]
[348372121,1736477439167,-500.0,9.999e-05,2]
[348372122,1736477439178,-500.0,9.999e-05,2]
[348372123,1736477439188,-500.0,9.999e-05,2]
[348372124,1736477439198,-500.0,9.999e-05,2]
[348372125,1736477439207,-500.0,9.999e-05,2]
[348372126,1736477439217,-565.72,9.999e-05,2]
[348372127,1736477439227,-500.0,9.999e-05,2]
[348372128,1736477439236,-500.0,9.999e-05,2]
[348372129,1736477439246,-505.45833049,9.999e-05,2]
[348372130,1736477439255,-548.61,9.999e-05,2]
[348372131,1736477439264,-303.621184,9.999e-05,2]
[348372132,1736477439274,-500.0,9.999e-05,2]
[348372133,1736477439283,-500.0,9.999e-05,2]
[348372134,1736477439293,-500.0,9.999e-05,2]
[348372135,1736477439303,-500.0,9.999e-05,2]
[348372136,1736477439313,-500.0,9.999e-05,2]
[348372137,1736477439323,-500.0,9.999e-05,2]
[348372138,1736477439332,-500.0,9.999e-05,2]
[348372139,1736477439342,-308.833534,9.999e-05,2]
[348372140,1736477439351,-500.0,9.999e-05,2]
[348372141,1736477439361,-500.0,9.999e-05,2]
[348372142,1736477439371,-500.0,9.999e-05,2]
[348372143,1736477439380,-500.0,9.999e-05,2]
[348372144,1736477439389,-500.0,9.999e-05,2]
[348372145,1736477439399,-500.0,9.999e-05,2]
[348372146,1736477439408,-500.0,9.999e-05,2]
[348372147,1736477439417,-500.0,9.999e-05,2]
[348372148,1736477439427,-529.37,9.999e-05,2]
[348372149,1736477439436,-522.54,9.999e-05,2]
[348372150,1736477439446,-500.0,9.999e-05,2]
[348372151,1736477439456,-500.0,9.999e-05,2]
[348372152,1736477439466,-500.0,9.999e-05,2]
[348372153,1736477439485,-500.0,9.999e-05,2]
[348372154,1736477439496,-500.0,9.999e-05,2]
[348372155,1736477439505,-500.0,9.999e-05,2]
[348372156,1736477439514,-544.65,9.999e-05,2]
[348372157,1736477439525,-500.0,9.999e-05,2]
[348372158,1736477439536,-503.75090582,9.999e-05,2]
[348372159,1736477439547,-534.46,9.999e-05,2]
[348372160,1736477439558,-556.59,9.999e-05,2]
[348372161,1736477439568,-500.0,9.999e-05,2]
[348372162,1736477439578,-500.0,9.999e-05,2]
[348372163,1736477439588,-696.91,9.999e-05,2]
[348372164,1736477439598,-500.0,9.999e-05,2]
[348372165,1736477439608,-500.0,9.999e-05,2]
[348372166,1736477439618,-500.0,9.999e-05,2]
[348372167,1736477439627,-500.0,9.999e-05,2]
[348372168,1736477439637,-504.71377121,9.999e-05,2]
[348372169,1736477439647,-552.2,9.999e-05,2]
[348372170,1736477439657,-741.96,9.999e-05,2]
[348372171,1736477439667,-500.0,9.999e-05,2]
[348372172,1736477439677,-500.0,9.999e-05,2]
[348372173,1736477439687,-500.0,9.999e-05,2]
[348372174,1736477439696,-500.0,9.999e-05,2]
[348372175,1736477439705,-500.0,9.999e-05,2]
[348372176,1736477439714,-659.12,9.999e-05,2]
[348372177,1736477439723,-500.0,9.999e-05,2]
[348372178,1736477439733,-500.0,9.999e-05,2]
[348372179,1736477439743,-704.98,9.999e-05,2]
[348372180,1736477439752,-500.0,9.999e-05,2]
[348372181,1736477439762,-637.66,9.999e-05,2]
[348372182,1736477439772,-500.0,9.999e-05,2]
[348372183,1736477439782,-500.0,9.999e-05,2]
[348372184,1736477439791,-500.0,9.999e-05,2]
[348372185,1736477439801,-611.58,9.999e-05,2]
[348372186,1736477439811,-500.0,9.999e-05,2]
[348372187,1736477439820,-160.7445331,9.999e-05,2]
[348372188,1736477439830,-500.0,9.999e-05,2]
[348372189,1736477439839,-583.04,9.999e-05,2]
[348372190,1736477439849,-500.0,9.999e-05,2]
[348372191,1736477439858,-500.0,9.999e-05,2]
[348372192,1736477439867,-500.0,9.999e-05,2]
[348372193,1736477439876,-568.56271834,9.999e-05,2]
[348372194,1736477439886,-503.90853002,9.999e-05,2]
[348372195,1736477439895,-500.0,9.999e-05,2]
[348372196,1736477439905,-547.86790854,9.999e-05,2]
[348372197,1736477439914,-500.0,9.999e-05,2]
[348372198,1736477439923,-506.14747057,9.999e-05,2]
[348372199,1736477439932,-380.20391017,9.999e-05,2]
[348372200,1736477439941,-557.47,9.999e-05,2]
[348372201,1736477439951,-548.8,9.999e-05,2]
[348372202,1736477439960,-500.0,9.999e-05,2]
[348372203,1736477439970,-500.0,9.999e-05,2]
[348372204,1736477439979,-609.07,9.999e-05,2]
[348372205,1736477439988,-500.0,9.999e-05,2]
[348372206,1736477439997,-500.0,9.999e-05,2]
[348372207,1736477440007,-500.0,9.999e-05,2]
[348372208,1736477440020,-500.0,9.999e-05,2]
[348372209,1736477440031,-563.05,9.999e-05,2]
[348372210,1736477440040,-587.42,9.999e-05,2]
[348372211,1736477440049,-652.88,9.999e-05,2]
[348372212,1736477440058,-500.0,9.999e-05,2]
[348372213,1736477440067,-500.0,9.999e-05,2]
[348372214,1736477440077,-638.2,9.999e-05,2]
[348372215,1736477440087,-500.0,9.999e-05,2]
[348372216,1736477440098,-505.99151233,9.999e-05,2]
[348372217,1736477440108,-500.0,9.999e-05,2]
[348372218,1736477440120,-500.0,9.999e-05,2]
[348372219,1736477440130,-500.0,9.999e-05,2]
[348372220,1736477440142,-514.09158691,9.999e-05,2]
[348372221,1736477440152,-541.99,9.999e-05,2]
[348372222,1736477440162,-500.0,9.999e-05,2]
[348372223,1736477440171,-500.0,9.999e-05,2]
[348372224,1736477440180,-500.0,9.999e-05,2]
[348372225,1736477440191,-500.0,9.999e-05,2]
[348372226,1736477440200,-500.0,9.999e-05,2]
[348372227,1736477440210,-500.0,9.999e-05,2]
[348372228,1736477440219,-392.62649858,9.999e-05,2]
[348372229,1736477440228,-500.0,9.999e-05,2]
[348372230,1736477440237,-500.0,9.999e-05,2]
[348372231,1736477440247,-506.7393157,9.999e-05,2]
[348372232,1736477440256,-500.0,9.999e-05,2]
[348372233,1736477440266,-499.53573517,9.999e-05,2]
[348372234,1736477440275,-500.0,9.999e-05,2]
[348372235,1736477440284,-500.0,9.999e-05,2]
[348372236,1736477440293,-500.0,9.999e-05,2]
[348372237,1736477440302,-500.0,9.999e-05,2]
[348372238,1736477440312,-500.0,9.999e-05,2]
[348372239,1736477440321,-613.36,9.999e-05,2]
[348372240,1736477440331,-500.0,9.999e-05,2]
[348372241,1736477440340,-500.0,9.999e-05,2]
[348372242,1736477440350,-500.0,9.999e-05,2]
[348372243,1736477440359,-500.0,9.999e-05,2]
[348372244,1736477440368,-500.0,9.999e-05,2]
[348372245,1736477440377,-551.45,9.999e-05,2]
[348372246,1736477440387,-586.74965835,9.999e-05,2]
[348372247,1736477440396,-500.0,9.999e-05,2]
[348372248,1736477440406,-654.53,9.999e-05,2]
[348372249,1736477440416,-500.0,9.999e-05,2]
[348372250,1736477440425,-500.0,9.999e-05,2]
[348372251,1736477440435,-500.0,9.999e-05,2]
[348372252,1736477440446,-532.6,9.999e-05,2]
[348372253,1736477440455,-500.0,9.999e-05,2]
[348372254,1736477440465,-653.15,9.999e-05,2]
[348372255,1736477440476,-649.71,9.999e-05,2]
[348372256,1736477440486,-500.0,9.999e-05,2]
[348372257,1736477440496,-500.0,9.999e-05,2]
[348372258,1736477440505,-709.09,9.999e-05,2]
[348372259,1736477440515,-588.42,9.999e-05,2]
[348372260,1736477440526,-558.89,9.999e-05,2]
[348372261,1736477440535,-1849.14,9.999e-05,2]
[348372262,1736477440544,-500.0,9.999e-05,2]
[348372263,1736477440555,-500.0,9.999e-05,2]
[348372264,1736477440565,-500.0,9.999e-05,2]
[348372265,1736477440575,-662.71,9.999e-05,2]
[348372266,1736477440584,-428.08623562,9.999e-05,2]
[348372268,1736477440593,-500.0,9.999e-05,2]
[348372269,1736477440603,-500.0,9.999e-05,2]
[348372270,1736477440612,-500.0,9.999e-05,2]
[348372271,1736477440621,-581.11,9.999e-05,2]
[348372272,1736477440630,-1734.34,9.999e-05,2]
[348372273,1736477440639,-500.0,9.999e-05,2]
[348372274,1736477440648,-500.0,9.999e-05,2]
[348372275,1736477440658,-500.0,9.999e-05,2]
[348372276,1736477440668,-319.90049367,9.999e-05,2]
[348372277,1736477440678,-671.24,9.999e-05,2]
[348372278,1736477440688,-500.0,9.999e-05,2]
[348372279,1736477440697,-500.0,9.999e-05,2]
[348372280,1736477440707,-502.87901527,9.999e-05,2]
[348372281,1736477440716,-500.0,9.999e-05,2]
[348372282,1736477440726,-613.68,9.999e-05,2]
[348372283,1736477440737,-745.17,9.999e-05,2]
[348372284,1736477440748,-500.0,9.999e-05,2]
[348372285,1736477440759,-500.0,9.999e-05,2]
[348372286,1736477440770,-507.67,9.999e-05,2]
[348372287,1736477440780,-695.83,9.999e-05,2]
[348372288,1736477440791,-500.0,9.999e-05,2]
[348372289,1736477440802,-500.0,9.999e-05,2]
[348372290,1736477440812,-922.26,9.999e-05,2]
[348372291,1736477440822,-500.0,9.999e-05,2]
[348372292,1736477440831,-500.0,9.999e-05,2]
[348372293,1736477440840,-834.11,9.999e-05,2]
[348372294,1736477440850,-500.0,9.999e-05,2]
[348372295,1736477440859,-628.05,9.999e-05,2]
[348372296,1736477440869,-500.0,9.999e-05,2]
[348372297,1736477440879,-500.0,9.999e-05,2]
[348372298,1736477440888,-500.0,9.999e-05,2]
[348372299,1736477440898,-500.0,9.999e-05,2]
[348372300,1736477440907,-586.83,9.999e-05,2]
[348372301,1736477440916,-950.03,9.999e-05,2]
[348372302,1736477440926,-500.0,9.999e-05,2]
[348372303,1736477440936,-500.0,9.999e-05,2]
[348372304,1736477440946,-505.1,9.999e-05,2]
[348372305,1736477440956,-500.0,9.999e-05,2]
[348372306,1736477440965,-3018.26,9.999e-05,2]
[348372307,1736477440973,-500.0,9.999e-05,2]
[348372308,1736477440982,-505.33750433,9.999e-05,2]
[348372309,1736477440991,-500.0,9.999e-05,2]
[348372310,1736477441000,-503.48320087,9.999e-05,2]
[348372311,1736477441009,-541.16,9.999e-05,2]
[348372312,1736477441018,-500.0,9.999e-05,2]
[348372313,1736477441027,-501.72197721,9.999e-05,2]
[348372314,1736477441036,-576.04,9.999e-05,2]
[348372315,1736477441045,-502.02093361,9.999e-05,2]
[348372316,1736477441054,-500.0,9.999e-05,2]
[348372317,1736477441063,-500.0,9.999e-05,2]
[348372318,1736477441072,-551.61920567,9.999e-05,2]
[348372319,1736477441081,-500.0,9.999e-05,2]
[348372320,1736477441089,-500.0,9.999e-05,2]
[348372321,1736477441098,-1014.4,9.999e-05,2]
[348372322,1736477441108,-500.0,9.999e-05,2]
[348372323,1736477441117,-502.67228604,9.999e-05,2]
[348372324,1736477441127,-500.0,9.999e-05,2]
[348372325,1736477441137,-500.0,9.999e-05,2]
[348372326,1736477441147,-590.37,9.999e-05,2]
[348372327,1736477441157,-540.09086533,9.999e-05,2]
[348372328,1736477441166,-500.0,9.999e-05,2]
[348372329,1736477441176,-1867.32,9.999e-05,2]
[348372330,1736477441185,-561.82,9.999e-05,2]
[348372331,1736477441195,-500.0,9.999e-05,2]
[348372332,1736477441205,-747.33,9.999e-05,2]
[348372333,1736477441214,-500.0,9.999e-05,2]
[348372334,1736477441224,-564.12,9.999e-05,2]
[348372335,1736477441234,-627.7,9.999e-05,2]
[348372336,1736477441244,-500.0,9.999e-05,2]
[348372337,1736477441253,-754.26,9.999e-05,2]
[348372338,1736477441262,-720.87,9.999e-05,2]
[348372339,1736477441272,-1883.44,9.999e-05,2]
[348372340,1736477441281,-500.0,9.999e-05,2]
[348372341,1736477441291,-500.0,9.999e-05,2]
[348372342,1736477441300,-500.0,9.999e-05,2]
[348372343,1736477441310,-737.77,9.999e-05,2]
[348372344,1736477441319,-596.84,9.999e-05,2]
[348372345,1736477441329,-500.0,9.999e-05,2]
[348372346,1736477441338,-500.0,9.999e-05,2]
[348372347,1736477441348,-714.0,9.999e-05,2]
[348372348,1736477441359,-613.4,9.999e-05,2]
[348372349,1736477441369,-771.56,9.999e-05,2]
[348372350,1736477441379,-500.0,9.999e-05,2]
[348372351,1736477441388,-651.06,9.999e-05,2]
[348372352,1736477441398,-500.0,9.999e-05,2]
[348372353,1736477441408,-987.88,9.999e-05,2]
[348372354,1736477441418,-500.0,9.999e-05,2]
[348372355,1736477441427,-623.69,9.999e-05,2]
[348372356,1736477441436,-500.0,9.999e-05,2]
[348372357,1736477441449,-541.04,9.999e-05,2]
[348372358,1736477441459,-591.46,9.999e-05,2]
[348372359,1736477441468,-819.9,9.999e-05,2]
[348372360,1736477441481,-500.0,9.999e-05,2]
[348372361,1736477441491,-500.0,9.999e-05,2]
[348372362,1736477441500,-597.25,9.999e-05,2]
[348372363,1736477441510,-305.32031744,9.999e-05,2]
[348372364,1736477441522,-238.47288949,9.999e-05,2]
[348372365,1736477441532,-878.18,9.999e-05,2]
[348372366,1736477441542,-2786.47,9.999e-05,2]
[348372367,1736477441552,-710.09,9.999e-05,2]
[348372368,1736477441561,-1277.9,9.999e-05,2]
[348372369,1736477441571,-2090.18,9.999e-05,2]
[348372370,1736477441581,-500.0,9.999e-05,2]
[348372371,1736477441591,-592.38,9.999e-05,2]
[348372372,1736477441600,-564.76,9.999e-05,2]
[348372373,1736477441610,-628.1,9.999e-05,2]
[348372374,1736477441619,-504.16,9.999e-05,2]
[348372375,1736477441629,-500.0,9.999e-05,2]
[348372376,1736477441639,-859.0,9.999e-05,2]
[348372377,1736477441649,-1356.22,9.999e-05,2]
[348372378,1736477441659,-1086.88,9.999e-05,2]
[348372379,1736477441668,-686.02,9.999e-05,2]
[348372380,1736477441679,-500.0,9.999e-05,2]
[348372381,1736477441688,-534.39,9.999e-05,2]
[348372382,1736477441701,-511.27321395,9.999e-05,2]
[348372383,1736477441710,-553.93,9.999e-05,2]
[348372384,1736477441720,-500.0,9.999e-05,2]
[348372385,1736477441730,-573.51,9.999e-05,2]
[348372386,1736477441740,-500.0,9.999e-05,2]
[348372387,1736477441749,-4400.66,9.999e-05,2]
[348372388,1736477441759,-500.09490711,9.999e-05,2]
[348372389,1736477441769,-1286.32,9.999e-05,2]
[348372390,1736477441778,-500.0,9.999e-05,2]
[348372391,1736477441788,-246.78452451,9.999e-05,2]
[348372392,1736477441798,-1555.40807872,0.0001,2]
[348372393,1736477441808,-2156015.66233407,0.0001,2]
[348372394,1736477441818,-1029.01549259,0.0001,2]
[348372395,1736477442025,-690.60544244,0.0001,2]
[348372396,1736477442037,-162.28035628,0.0001,2]
[348372397,1736477442047,-200.0,0.0001,2]
[348372398,1736477442058,-3000.0,0.0001,2]
[348372399,1736477442067,-219.8,0.0001,2]
[348372400,1736477442076,-1653.51894508,0.0001,2]
[348372401,1736477442086,-1653.51894502,0.00010013,2]
[348372402,1736477442095,-1653.51894502,0.00010027,2]
[348372403,1736477442104,-1653.51894502,0.00010042,2]
[348372404,1736477442114,-1653.51894502,0.00010056,2]
[348372405,1736477442124,-1653.51894502,0.00010071,2]
[348372406,1736477442133,-1653.51894502,0.00010086,2]
[348372407,1736477442143,-1653.51894502,0.000101,2]
[348372408,1736477442153,-10844.9664169,0.00010105,2]
[348372409,1736477442163,-1000.0,0.00010105,2]
[348372410,1736477442172,-500.0,0.00010105,2]
[348372411,1736477442182,-928.76,0.00010105,2]
[348372412,1736477442192,-500.0,0.00010105,2]
[348372413,1736477442201,-2566.33,0.00010105,2]
[348372414,1736477442211,-2937.38,0.00010105,2]
[348372415,1736477442220,-500.0,0.00010105,2]
[348372416,1736477442230,-1573.13,0.00010105,2]
[348372417,1736477442239,-1048.51,0.00010105,2]
[348372418,1736477442249,-2959.53,0.00010105,2]
[348372419,1736477442258,-862.66,0.00010105,2]
[348372420,1736477442268,-500.0,0.00010105,2]
[348372421,1736477442277,-875.89,0.00010105,2]
[348372422,1736477442287,-729.91,0.00010105,2]
[348372423,1736477442296,-1144.57,0.00010105,2]
[348372424,1736477442305,-500.0,0.00010106,2]
[348372425,1736477442314,-776.8,0.00010106,2]
[348372426,1736477442324,-530.29,0.00010106,2]
[348372427,1736477442333,-697.22,0.00010106,2]
[348372428,1736477442342,-500.0,0.00010106,2]
[348372429,1736477442351,-841.98,0.00010106,2]
[348372430,1736477442360,-523.04,0.00010106,2]
[348372431,1736477442369,-750.98,0.00010106,2]
[348372432,1736477442378,-500.0,0.00010106,2]
[348372433,1736477442387,-500.0,0.00010106,2]
[348372434,1736477442398,-1653.51894502,0.00010115,2]
[348372435,1736477442407,-1653.51894502,0.00010129,2]
[348372436,1736477442417,-215.81945348,0.00010139,2]
[348372437,1736477442426,-1653.51894502,0.00010144,2]
[348372438,1736477442435,-1653.51894502,0.00010158,2]
[348372439,1736477442445,-1653.51894502,0.00010173,2]
[348372440,1736477442455,-500.0,0.00010186,2]
[348372441,1736477442464,-600.0,0.00010186,2]
[348372442,1736477442474,-379.48858731,0.00010186,2]
[348372443,1736477442485,-1000.0,0.00010194,2]
[348372444,1736477442495,-1083.0,0.00010209,2]
[348372445,1736477442504,-500.0,0.00010242,2]
[348372446,1736477442513,-8089.21483986,0.00010247,4]
[348372447,1736477442524,-500.0,0.00010263,2]
[348372448,1736477442534,-500.0,0.00010263,2]
[348372449,1736477442544,-500.0,0.00010263,2]
[348372450,1736477442554,-500.0,0.00010263,2]
[348372451,1736477442564,-500.0,0.00010263,2]
[348372452,1736477442574,-500.0,0.00010263,2]
[348372453,1736477442584,-500.0,0.00010263,2]
[348372454,1736477442593,-500.0,0.00010263,2]
[348372455,1736477442603,-500.0,0.00010263,2]
[348372456,1736477442612,-1142.92,0.00010263,2]
[348372457,1736477442622,-502.47606256,0.00010263,2]
[348372458,1736477442632,-1233.37,0.00010263,2]
[348372459,1736477442641,-500.0,0.00010263,2]
[348372460,1736477442651,-6466.72,0.00010263,2]
[348372461,1736477442660,-806.44,0.00010263,2]
[348372462,1736477442670,-815.51,0.00010263,2]
[348372463,1736477442680,-984.41,0.00010263,2]
[348372464,1736477442690,-500.0,0.00010263,2]
[348372465,1736477442700,-969.37,0.00010263,2]
[348372466,1736477442711,-500.0,0.00010263,2]
[348372467,1736477442721,-931.27,0.00010263,2]
[348372468,1736477442730,-1601.35,0.00010263,2]
[348372469,1736477442740,-500.0,0.00010263,2]
[348372470,1736477442749,-2908.09,0.00010263,2]
[348372471,1736477442759,-1381.38,0.00010263,2]
[348372472,1736477442768,-534.48,0.00010263,2]
[348372473,1736477442778,-500.0,0.00010263,2]
[348372474,1736477442788,-1096.05,0.00010263,2]
[348372475,1736477442797,-1498.7,0.00010263,2]
[348372476,1736477442807,-722.51,0.00010263,2]
[348372477,1736477442816,-2940.58,0.00010263,2]
[348372478,1736477442826,-521.71,0.00010263,2]
[348372479,1736477442835,-1498.1,0.00010263,2]
[348372480,1736477442845,-1382.77,0.00010263,2]
[348372481,1736477442855,-500.0,0.00010263,2]
[348372482,1736477442864,-866.43,0.00010263,2]
[348372483,1736477442873,-500.0,0.00010263,2]
[348372484,1736477442883,-1335.62,0.00010263,2]
[348372485,1736477442893,-2518.51,0.00010263,2]
[348372486,1736477442903,-1056.7,0.00010263,2]
[348372487,1736477442913,-500.0,0.00010263,2]
[348372488,1736477442922,-500.0,0.00010263,2]
[348372489,1736477442932,-500.0,0.00010263,2]
[348372490,1736477442942,-500.0,0.00010263,2]
[348372491,1736477442952,-881.05,0.00010263,2]
[348372492,1736477442962,-500.0,0.00010263,2]
[348372493,1736477442971,-1461.84,0.00010263,2]
[348372494,1736477442981,-1029.74,0.00010263,2]
[348372495,1736477442991,-500.0,0.00010263,2]
[348372496,1736477443000,-691.56,0.00010263,2]
[348372497,1736477443010,-730.01,0.00010263,2]
[348372498,1736477443020,-500.0,0.00010263,2]
[348372499,1736477443029,-2592.9,0.00010263,2]
[348372500,1736477443039,-500.0,0.00010263,2]
[348372501,1736477443048,-945.53,0.00010263,2]
[348372502,1736477443058,-1193.59,0.00010263,2]
[348372503,1736477443068,-1002.13,0.00010263,2]
[348372504,1736477443078,-513.92,0.00010263,2]
[348372505,1736477443087,-506.84638987,0.00010263,2]
[348372506,1736477443097,-3189.39,0.00010263,2]
[348372507,1736477443107,-1205.35,0.00010271,2]
[348372508,1736477443117,-1668.21,0.00010271,2]
[348372509,1736477443127,-1141.27,0.00010271,2]
[348372510,1736477443137,-3645.53,0.00010271,2]
[348372511,1736477443147,-1530.67,0.00010271,2]
[348372512,1736477443157,-2193.45,0.00010271,2]
[348372513,1736477443167,-1302.89,0.00010271,2]
[348372514,1736477443176,-1786.64,0.00010271,2]
[348372515,1736477443186,-945.27,0.00010271,2]
[348372516,1736477443196,-2370.23,0.00010271,2]
[348372517,1736477443206,-801.56,0.00010271,2]
[348372518,1736477443216,-919.87,0.00010271,2]
[348372519,1736477443226,-1420.74,0.00010271,2]
[348372520,1736477443236,-562.4,0.00010271,2]
[348372521,1736477443246,-1246.31,0.00010271,2]
[348372522,1736477443255,-796.46,0.00010271,2]
[348372523,1736477443264,-693.96,0.00010271,2]
[348372524,1736477443274,-941.23,0.00010271,2]
[348372525,1736477443283,-933.84,0.00010271,2]
[348372526,1736477443293,-1276.71,0.00010271,2]
[348372527,1736477443303,-1297.58,0.00010271,2]
[348372528,1736477443312,-2201.95,0.00010271,2]
[348372529,1736477443322,-5783.19,0.00010271,2]
[348372530,1736477443331,-1057.03,0.00010271,2]
[348372531,1736477443341,-803.72,0.00010271,2]
[348372532,1736477443351,-821.59,0.00010271,2]
[348372534,1736477443361,-2207.95,0.00010271,2]
[348372535,1736477443371,-500.0,0.00010271,2]
[348372536,1736477443380,-779.56,0.00010271,2]
[348372537,1736477443390,-840.26,0.00010271,2]
[348372538,1736477443400,-1169.18,0.00010271,2]
[348372539,1736477443410,-538.37,0.00010273,2]
[348372540,1736477443419,-500.0,0.00010273,2]
[348372541,1736477443429,-500.0,0.00010273,2]
[348372542,1736477443439,-500.0,0.00010273,2]
[348372543,1736477443450,-500.0,0.00010273,2]
[348372544,1736477443460,-500.0,0.00010273,2]
[348372545,1736477443469,-500.0,0.00010273,2]